lending/lending_fUSD_20250719
["ID","MTS","AMOUNT","RATE_DAILY","PERIOD"]
[373174392,1752889859389,-480.0,0.00019616,2]
[373174394,1752889859398,-480.0,0.00019616,2]
[373174396,1752889859408,-480.0,0.00019616,2]
[373174398,1752889859417,-480.0,0.00019616,2]
[373174400,1752889859427,-480.0,0.00019616,2]
[373174423,1752889859643,-480.0,0.00019616,2]
[373174425,1752889859655,-480.0,0.00019616,2]
[373174427,1752889859664,-480.0,0.00019616,2]
[373174429,1752889859682,-480.0,0.00019616,2]
[373174431,1752889859693,-480.0,0.00019616,2]
[373174433,1752889859703,-480.0,0.00019616,2]
[373174435,1752889859717,-480.0,0.00019616,2]
[373174437,1752889859727,-480.0,0.00019616,2]
[373174439,1752889859736,-480.0,0.00019616,2]
[373174441,1752889859747,-480.0,0.00019616,2]
[373174443,1752889859757,-480.0,0.00019616,2]
[373174445,1752889859767,-480.0,0.00019616,2]
[373174446,1752889859777,-480.0,0.00019616,2]
[373174448,1752889859787,-480.0,0.00019616,2]
[373174450,1752889859797,-480.0,0.00019616,2]
[373174453,1752889859806,-480.0,0.00019616,2]
[373174455,1752889859816,-495.86,0.00019616,2]
[373174457,1752889859825,-480.0,0.00019616,2]
[373174459,1752889859834,-480.0,0.00019616,2]
[373174461,1752889859844,-721.32,0.00019616,2]
[373174463,1752889859853,-480.0,0.00019616,2]
[373174465,1752889859862,-480.0,0.00019616,2]
[373174467,1752889859871,-480.0,0.00019616,2]
[373174469,1752889859880,-480.0,0.00019616,2]
[373174471,1752889859890,-575.96,0.00019616,2]
[373174473,1752889859900,-480.0,0.00019616,2]
[373174475,1752889859909,-480.0,0.00019616,2]
[373174477,1752889859921,-480.0,0.00019616,2]
[373174479,1752889859931,-480.0,0.00019616,2]
[373174481,1752889859941,-480.0,0.00019616,2]
[373174483,1752889859951,-480.0,0.00019616,2]
[373174485,1752889859960,-480.0,0.00019616,2]
[373174487,1752889859970,-480.0,0.00019616,2]
[373174489,1752889859980,-915.74,0.00019616,2]
[373174491,1752889859990,-480.0,0.00019616,2]
[373174493,1752889859999,-480.0,0.00019616,2]
[373174495,1752889860009,-480.0,0.00019616,2]
[373174497,1752889860019,-480.0,0.00019616,2]
[373174499,1752889860029,-480.0,0.00019616,2]
[373174501,1752889860038,-480.0,0.00019616,2]
[373174503,1752889860048,-480.0,0.00019616,2]
[373174505,1752889860058,-480.0,0.00019616,2]
[373174507,1752889860069,-496.46,0.00019616,2]
[373174509,1752889860079,-480.0,0.00019616,2]
[373174511,1752889860089,-480.0,0.00019616,2]
[373174513,1752889860099,-480.0,0.00019616,2]
[373174515,1752889860109,-480.0,0.00019616,2]
[373174517,1752889860119,-578.36,0.00019616,2]
[373174519,1752889860129,-480.0,0.00019616,2]
[373174521,1752889860138,-480.0,0.00019616,2]
[373174523,1752889860148,-480.0,0.00019616,2]
[373174525,1752889860157,-480.0,0.00019616,2]
[373174527,1752889860167,-480.0,0.00019616,2]
[373174528,1752889860179,-480.0,0.00019616,2]
[373174529,1752889860190,-480.0,0.00019616,2]
[373174530,1752889860200,-480.0,0.00019616,2]
[373174531,1752889860210,-480.0,0.00019616,2]
[373174532,1752889860219,-480.0,0.00019616,2]
[373174533,1752889860229,-1840.49,0.00019616,2]
[373174534,1752889860238,-480.0,0.00019616,2]
[373174535,1752889860248,-480.0,0.00019616,2]
[373174536,1752889860257,-673.82,0.00019616,2]
[373174537,1752889860267,-480.0,0.00019616,2]
[373174538,1752889860277,-480.0,0.00019616,2]
[373174539,1752889860288,-480.0,0.00019616,2]
[373174540,1752889860298,-498.99,0.00019616,2]
[373174541,1752889860307,-480.0,0.00019616,2]
[373174543,1752889860317,-480.0,0.00019616,2]
[373174545,1752889860327,-480.0,0.00019616,2]
[373174547,1752889860336,-480.0,0.00019616,2]
[373174549,1752889860345,-480.0,0.00019616,2]
[373174551,1752889860355,-480.0,0.00019616,2]
[373174553,1752889860365,-480.0,0.00019616,2]
[373174555,1752889860375,-923.18,0.00019616,2]
[373174556,1752889860385,-480.0,0.00019616,2]
[373174557,1752889860394,-480.0,0.00019616,2]
[373174558,1752889860403,-480.0,0.00019616,2]
[373174559,1752889860413,-480.0,0.00019616,2]
[373174560,1752889860423,-536.67327502,0.00019616,2]
[373174561,1752889860433,-480.0,0.00019616,2]
[373174562,1752889860443,-480.0,0.00019616,2]
[373174563,1752889860453,-480.0,0.00019616,2]
[373174564,1752889860758,-480.0,0.00019616,2]
[373174565,1752889860771,-480.0,0.00019616,2]
[373174566,1752889860781,-480.0,0.00019616,2]
[373174567,1752889860790,-480.0,0.00019616,2]
[373174568,1752889860798,-480.0,0.00019616,2]
[373174569,1752889860807,-480.0,0.00019616,2]
[373174570,1752889860816,-497.21,0.00019616,2]
[373174571,1752889860826,-480.0,0.00019616,2]
[373174572,1752889860836,-480.0,0.00019616,2]
[373174573,1752889860846,-480.0,0.00019616,2]
[373174574,1752889860855,-504.28,0.00019616,2]
[373174575,1752889860865,-480.0,0.00019616,2]
[373174576,1752889860875,-2035.93,0.00019616,2]
[373174577,1752889860885,-490.21,0.00019616,2]
[373174578,1752889860895,-501.52,0.00019616,2]
[373174579,1752889860904,-480.0,0.00019616,2]
[373174580,1752889860913,-548.29,0.00019616,2]
[373174581,1752889860924,-562.57,0.00019616,2]
[373174583,1752889860936,-480.0,0.00019616,2]
[373174584,1752889860945,-480.0,0.00019616,2]
[373174586,1752889860955,-480.0,0.00019616,2]
[373174588,1752889860965,-480.0,0.00019616,2]
[373174590,1752889860974,-818.89,0.00019616,2]
[373174592,1752889860983,-480.0,0.00019616,2]
[373174594,1752889860993,-687.65,0.00019616,2]
[373174596,1752889861003,-480.0,0.00019616,2]
[373174598,1752889861013,-2202.48,0.00019616,2]
[373174600,1752889861022,-480.0,0.00019616,2]
[373174602,1752889861032,-618.1,0.00019616,2]
[373174605,1752889861042,-480.0,0.00019616,2]
[373174607,1752889861052,-480.0,0.00019616,2]
[373174609,1752889861062,-936.33,0.00019616,2]
[373174610,1752889861071,-480.0,0.00019616,2]
[373174613,1752889861081,-480.0,0.00019616,2]
[373174614,1752889861091,-480.0,0.00019616,2]
[373174616,1752889861101,-480.0,0.00019616,2]
[373174617,1752889861111,-480.0,0.00019616,2]
[373174618,1752889861120,-480.0,0.00019616,2]
[373174619,1752889861131,-480.0,0.00019616,2]
[373174620,1752889861141,-480.0,0.00019616,2]
[373174621,1752889861151,-480.0,0.00019616,2]
[373174622,1752889861161,-480.0,0.00019616,2]
[373174623,1752889861171,-1561.05,0.00019616,2]
[373174624,1752889861180,-1095.87,0.00019616,2]
[373174625,1752889861190,-480.0,0.00019616,2]
[373174626,1752889861201,-480.0,0.00019616,2]
[373174627,1752889861210,-480.0,0.00019616,2]
[373174628,1752889861219,-186.24898942,0.00019616,2]
[373174629,1752889861230,-15887.57,0.00019616,2]
[373174630,1752889861240,-480.0,0.00019616,2]
[373174631,1752889861249,-480.0,0.00019616,2]
[373174632,1752889861260,-480.0,0.00019616,2]
[373174633,1752889861270,-505.31,0.00019616,2]
[373174634,1752889861280,-3440.0,0.00019616,2]
[373174635,1752889861289,-480.0,0.00019616,2]
[373174636,1752889861300,-2091.14,0.00019616,2]
[373174637,1752889861309,-661.19,0.00019616,2]
[373174638,1752889861319,-1260.7,0.00019616,2]
[373174639,1752889861328,-811.22,0.00019616,2]
[373174640,1752889861338,-480.0,0.00019616,2]
[373174641,1752889861348,-480.0,0.00019616,2]
[373174642,1752889861360,-2023.49,0.00019616,2]
[373174643,1752889861369,-480.0,0.00019616,2]
[373174644,1752889861379,-958.94,0.00019616,2]
[373174645,1752889861389,-480.0,0.00019616,2]
[373174646,1752889861399,-689.88,0.00019616,2]
[373174647,1752889861409,-480.0,0.00019616,2]
[373174648,1752889861419,-480.0,0.00019616,2]
[373174649,1752889861429,-545.23,0.00019616,2]
[373174650,1752889861439,-480.0,0.00019616,2]
[373174651,1752889861449,-748.38,0.00019616,2]
[373174652,1752889861458,-664.19,0.00019616,2]
[373174653,1752889861468,-548.66,0.00019616,2]
[373174654,1752889861477,-1476.64,0.00019616,2]
[373174655,1752889861486,-641.37,0.00019616,2]
[373174656,1752889861496,-480.0,0.00019616,2]
[373174657,1752889861505,-480.0,0.00019616,2]
[373174658,1752889861515,-673.74,0.00019616,2]
[373174659,1752889861524,-712.57,0.00019616,2]
[373174660,1752889861534,-1562.46,0.00019616,2]
[373174661,1752889861543,-2525.28,0.00019616,2]
[373174662,1752889861553,-846.8,0.00019616,2]
[373174663,1752889861562,-1832.83,0.00019616,2]
[373174664,1752889861573,-853.3,0.00019616,2]
[373174665,1752889861589,-480.0,0.00019616,2]
[373174666,1752889861598,-480.0,0.00019616,2]
[373174667,1752889861607,-1334.13,0.00019616,2]
[373174668,1752889861618,-480.0,0.00019616,2]
[373174669,1752889861628,-480.0,0.00019616,2]
[373174670,1752889861637,-480.0,0.00019616,2]
[373174671,1752889861647,-1028.02,0.00019616,2]
[373174672,1752889861658,-480.0,0.00019616,2]
[373174673,1752889861668,-506.57,0.00019616,2]
[373174674,1752889861683,-480.0,0.00019616,2]
[373174675,1752889861693,-1671.76,0.00019616,2]
[373174676,1752889861703,-446.33775417,0.00019616,2]
[373174677,1752889861713,-480.0,0.00019616,2]
[373174678,1752889861723,-866.58,0.00019616,2]
[373174679,1752889861733,-480.0,0.00019616,2]
[373174680,1752889861743,-480.0,0.00019616,2]
[373174681,1752889861753,-975.79,0.00019616,2]
[373174682,1752889861763,-480.0,0.00019616,2]
[373174683,1752889861774,-299.20154009,0.00019616,2]
[373174684,1752889861785,-1338.51,0.00019616,2]
[373174685,1752889861795,-480.0,0.00019616,2]
[373174686,1752889861804,-480.0,0.00019616,2]
[373174687,1752889861814,-1141.89,0.00019616,2]
[373174688,1752889861824,-749.04,0.00019616,2]
[373174689,1752889861833,-480.0,0.00019616,2]
[373174690,1752889861843,-6257.59,0.00019616,2]
[373174691,1752889861852,-1190.47,0.00019616,2]
[373174692,1752889861862,-1342.71,0.00019616,2]
[373174693,1752889861872,-480.0,0.00019616,2]
[373174694,1752889861881,-480.0,0.00019616,2]
[373174695,1752889861891,-1162.36,0.00019616,2]
[373174696,1752889861900,-570.25,0.00019616,2]
[373174697,1752889861909,-480.0,0.00019616,2]
[373174698,1752889861919,-480.0,0.00019616,2]
[373174699,1752889861936,-753.71,0.00019616,2]
[373174700,1752889861946,-911.83,0.00019616,2]
[373174701,1752889861956,-572.78,0.00019616,2]
[373174702,1752889861965,-480.0,0.00019616,2]
[373174703,1752889861975,-1250.81,0.00019616,2]
[373174704,1752889861985,-480.0,0.00019616,2]
[373174705,1752889861995,-480.0,0.00019616,2]
[373174706,1752889862005,-480.0,0.00019616,2]
[373174707,1752889862015,-835.97,0.00019616,2]
[373174708,1752889862025,-480.0,0.00019616,2]
[373174709,1752889862036,-1701.12,0.00019616,2]
[373174710,1752889862046,-538.36,0.00019616,2]
[373174711,1752889862057,-480.0,0.00019616,2]
[373174712,1752889862068,-1610.13,0.00019616,2]
[373174713,1752889862079,-480.0,0.00019616,2]
[373174714,1752889862090,-480.0,0.00019616,2]
[373174715,1752889862104,-480.0,0.00019616,2]
[373174716,1752889862115,-480.0,0.00019616,2]
[373174717,1752889862125,-3007.93,0.00019616,2]
[373174718,1752889862135,-1380.22,0.00019616,2]
[373174719,1752889862145,-697.23,0.00019616,2]
[373174720,1752889862154,-480.0,0.00019616,2]
[373174721,1752889862164,-480.0,0.00019616,2]
[373174722,1752889862178,-739.04,0.00019616,2]
[373174723,1752889862187,-511.36,0.00019616,2]
[373174724,1752889862197,-480.0,0.00019616,2]
[373174725,1752889862207,-480.0,0.00019616,2]
[373174726,1752889862217,-855.54,0.00019616,2]
[373174727,1752889862226,-887.37,0.00019616,2]
[373174728,1752889862236,-620.53,0.00019616,2]
[373174729,1752889862246,-6647.08,0.00019616,2]
[373174730,1752889862255,-480.0,0.00019616,2]
[373174731,1752889862265,-1924.32,0.00019616,2]
[373174732,1752889862275,-3781.44,0.00019616,2]
[373174733,1752889862284,-513.9,0.00019616,2]
[373174734,1752889862293,-776.21,0.00019616,2]
[373174735,1752889862303,-480.0,0.00019616,2]
[373174736,1752889862312,-882.17,0.00019616,2]
[373174737,1752889862321,-1168.82,0.00019616,2]
[373174738,1752889862331,-480.0,0.00019616,2]
[373174739,1752889862340,-480.0,0.00019616,2]
[373174740,1752889862350,-1000.0,0.00019616,2]
[373174741,1752889862359,-724.7,0.00019616,2]
[373174742,1752889862369,-480.0,0.00019616,2]
[373174743,1752889862378,-480.0,0.00019616,2]
[373174744,1752889862387,-480.0,0.00019616,2]
[373174745,1752889862396,-480.0,0.00019616,2]
[373174746,1752889862406,-1550.69,0.00019616,2]
[373174747,1752889862415,-583.62,0.00019616,2]
[373174748,1752889862428,-480.0,0.00019616,2]
[373174749,1752889862437,-666.6,0.00019616,2]
[373174750,1752889862446,-480.0,0.00019616,2]
[373174751,1752889862456,-1297.57,0.00019616,2]
[373174752,1752889862466,-480.0,0.00019616,2]
[373174753,1752889862475,-480.0,0.00019616,2]
[373174754,1752889862484,-480.0,0.00019616,2]
[373174755,1752889862494,-496.8,0.00019616,2]
[373174756,1752889862503,-879.84,0.00019616,2]
[373174757,1752889862513,-480.0,0.00019616,2]
[373174758,1752889862522,-1029.07,0.00019616,2]
[373174759,1752889862532,-489.29,0.00019616,2]
[373174760,1752889862542,-1000.83,0.00019616,2]
[373174761,1752889862551,-2375.0,0.00019616,2]
[373174762,1752889862561,-1157.13,0.00019616,2]
[373174763,1752889862571,-1875.69,0.00019616,2]
[373174764,1752889862583,-1975.7,0.00019616,2]
[373174765,1752889862593,-1119.15,0.00019616,2]
[373174766,1752889862602,-1408.08,0.00019616,2]
[373174767,1752889862612,-893.88,0.00019616,2]
[373174768,1752889862621,-2673.6,0.00019616,2]
[373174769,1752889862631,-723.58,0.00019616,2]
[373174770,1752889862640,-480.0,0.00019616,2]
[373174771,1752889862650,-486.31,0.00019616,2]
[373174772,1752889862659,-480.0,0.00019616,2]
[373174773,1752889862669,-480.0,0.00019616,2]
[373174774,1752889862682,-604.53,0.00019616,2]
[373174775,1752889862692,-559.33,0.00019616,2]
[373174776,1752889862701,-1020.2,0.00019616,2]
[373174777,1752889862711,-528.93,0.00019616,2]
[373174778,1752889862720,-480.0,0.00019616,2]
[373174779,1752889862730,-599.08,0.00019616,2]
[373174780,1752889862743,-480.0,0.00019616,2]
[373174781,1752889862753,-987.84,0.00019616,2]
[373174782,1752889862763,-648.9,0.00019616,2]
[373174783,1752889862772,-1953.52,0.00019616,2]
[373174784,1752889862782,-586.21,0.00019616,2]
[373174785,1752889862791,-480.0,0.00019616,2]
[373174786,1752889862801,-1355.46,0.00019616,2]
[373174787,1752889862810,-480.0,0.00019616,2]
[373174788,1752889862820,-803.91,0.00019616,2]
[373174789,1752889862829,-480.0,0.00019616,2]
[373174790,1752889862839,-894.8,0.00019616,2]
[373174791,1752889862848,-1146.52,0.00019616,2]
[373174792,1752889862858,-531.73,0.00019616,2]
[373174793,1752889862868,-480.0,0.00019616,2]
[373174794,1752889862878,-652.38,0.00019616,2]
[373174795,1752889862887,-480.0,0.00019616,2]
[373174796,1752889862897,-480.0,0.00019616,2]
[373174797,1752889862906,-1050.36,0.00019616,2]
[373174798,1752889862916,-480.0,0.00019616,2]
[373174799,1752889862927,-480.0,0.00019616,2]
[373174800,1752889862937,-920.09,0.00019616,2]
[373174801,1752889862946,-480.0,0.00019616,2]
[373174802,1752889862956,-164.13936327,0.00019641,2]
[373174803,1752889862968,-728.51191662,0.00019648,2]
[373174804,1752889862977,-200.0,0.00019677,2]
[373174805,1752889862987,-181.13100601,0.00019682,2]
[373174806,1752889862997,-509.34603278,0.00019682,2]
[373174807,1752889863006,-304.01000614,0.00019684,2]
[373174808,1752889863017,-502.01746865,0.00019684,2]
[373174809,1752889863027,-159.7531868,0.00019684,2]
[373174810,1752889863037,-500.79855636,0.00019684,2]
[373174811,1752889863047,-158.56932349,0.00019684,2]
[373174812,1752889863058,-504.28589032,0.00019684,2]
[373174813,1752889863067,-500.37770738,0.00019684,2]
[373174814,1752889863078,-501.9885778,0.00019684,2]
[373174815,1752889863087,-504.11888887,0.00019684,2]
[373174816,1752889863097,-506.50517968,0.00019684,2]
[373174817,1752889863107,-521.46669594,0.00019684,2]
[373174818,1752889863117,-168.0,0.00019685,2]
[373174819,1752889863126,-504.46103696,0.00019689,2]
[373174820,1752889863136,-215.0738,0.00019696,2]
[373174821,1752889863146,-150.0,0.00019725,2]
[373174822,1752889863156,-480.0,0.00019726,2]
[373174823,1752889863166,-480.0,0.00019726,2]
[373174824,1752889863287,-491.25,0.00019726,2]
[373174825,1752889863297,-480.0,0.00019726,2]
[373174826,1752889863306,-480.0,0.00019726,2]
[373174827,1752889863315,-480.0,0.00019726,2]
[373174828,1752889863325,-480.0,0.00019726,2]
[373174829,1752889863335,-480.0,0.00019726,2]
[373174830,1752889863344,-157.52729459,0.00019726,2]
[373174831,1752889863353,-525.46080368,0.00019726,2]
[373174832,1752889863362,-480.0,0.00019726,2]
[373174833,1752889863372,-480.0,0.00019726,2]
[373174834,1752889863382,-480.0,0.00019726,2]
[373174835,1752889863391,-518.63,0.00019726,2]
[373174836,1752889863400,-480.0,0.00019726,2]
[373174837,1752889863410,-480.0,0.00019726,2]
[373174838,1752889863419,-480.0,0.00019726,2]
[373174839,1752889863432,-480.0,0.00019726,2]
[373174840,1752889863441,-480.0,0.00019726,2]
[373174841,1752889863450,-480.0,0.00019726,2]
[373174842,1752889863460,-480.0,0.00019726,2]
[373174843,1752889863469,-480.0,0.00019726,2]
[373174844,1752889863479,-480.0,0.00019726,2]
[373174845,1752889863488,-480.0,0.00019726,2]
[373174846,1752889863498,-480.0,0.00019726,2]
[373174847,1752889863507,-3044.14,0.00019726,2]
[373174848,1752889863517,-480.0,0.00019726,2]
[373174849,1752889863526,-480.0,0.00019726,2]
[373174850,1752889863536,-512.92,0.00019726,2]
[373174851,1752889863545,-480.0,0.00019726,2]
[373174852,1752889863554,-480.0,0.00019726,2]
[373174853,1752889863564,-706.21,0.00019726,2]
[373174854,1752889863575,-480.0,0.00019726,2]
[373174855,1752889863585,-480.0,0.00019726,2]
[373174856,1752889863594,-480.0,0.00019726,2]
[373174857,1752889863603,-480.0,0.00019726,2]
[373174858,1752889863613,-480.0,0.00019726,2]
[373174859,1752889863623,-480.0,0.00019726,2]
[373174860,1752889863632,-480.0,0.00019726,2]
[373174861,1752889863642,-480.0,0.00019726,2]
[373174862,1752889863653,-480.0,0.00019726,2]
[373174863,1752889863663,-480.0,0.00019726,2]
[373174864,1752889863672,-267.24050052,0.00019726,2]
[373174865,1752889863685,-480.0,0.00019726,2]
[373174866,1752889863694,-480.0,0.00019726,2]
[373174867,1752889863703,-480.0,0.00019726,2]
[373174868,1752889863713,-480.0,0.00019726,2]
[373174869,1752889863722,-480.0,0.00019726,2]
[373174870,1752889863732,-480.0,0.00019726,2]
[373174871,1752889863741,-480.0,0.00019726,2]
[373174872,1752889863751,-480.0,0.00019726,2]
[373174873,1752889863760,-480.0,0.00019726,2]
[373174874,1752889863769,-480.0,0.00019726,2]
[373174875,1752889863779,-480.0,0.00019726,2]
[373174876,1752889863789,-480.0,0.00019726,2]
[373174877,1752889863798,-480.0,0.00019726,2]
[373174878,1752889863807,-480.0,0.00019726,2]
[373174879,1752889863817,-480.0,0.00019726,2]
[373174880,1752889863827,-480.0,0.00019726,2]
[373174881,1752889863837,-480.0,0.00019726,2]
[373174882,1752889863847,-495.86,0.00019726,2]
[373174883,1752889863857,-480.0,0.00019726,2]
[373174884,1752889863867,-480.0,0.00019726,2]
[373174885,1752889863876,-721.32,0.00019726,2]
[373174886,1752889863886,-480.0,0.00019726,2]
[373174887,1752889863895,-367.02003963,0.00019726,2]
[373174888,1752889863905,-480.0,0.00019726,2]
[373174889,1752889863914,-480.0,0.00019726,2]
[373174890,1752889863926,-575.96,0.00019726,2]
[373174891,1752889863936,-480.0,0.00019726,2]
[373174892,1752889863945,-480.0,0.00019726,2]
[373174893,1752889863954,-480.0,0.00019726,2]
[373174894,1752889863964,-480.0,0.00019726,2]
[373174895,1752889863973,-480.0,0.00019726,2]
[373174896,1752889863983,-480.0,0.00019726,2]
[373174897,1752889863993,-480.0,0.00019726,2]
[373174898,1752889864003,-480.0,0.00019726,2]
[373174899,1752889864013,-915.74,0.00019726,2]
[373174900,1752889864022,-480.0,0.00019726,2]
[373174901,1752889864032,-480.0,0.00019726,2]
[373174902,1752889864042,-480.0,0.00019726,2]
[373174903,1752889864051,-480.0,0.00019726,2]
[373174904,1752889864061,-480.0,0.00019726,2]
[373174905,1752889864070,-480.0,0.00019726,2]
[373174906,1752889864079,-480.0,0.00019726,2]
[373174907,1752889864089,-480.0,0.00019726,2]
[373174908,1752889864099,-496.46,0.00019726,2]
[373174909,1752889864108,-480.0,0.00019726,2]
[373174910,1752889864117,-480.0,0.00019726,2]
[373174911,1752889864127,-480.0,0.00019726,2]
[373174912,1752889864136,-480.0,0.00019726,2]
[373174913,1752889864146,-578.36,0.00019726,2]
[373174914,1752889864155,-480.0,0.00019726,2]
[373174915,1752889864165,-480.0,0.00019726,2]
[373174916,1752889864176,-480.0,0.00019726,2]
[373174917,1752889864191,-480.0,0.00019726,2]
[373174918,1752889864201,-480.0,0.00019726,2]
[373174919,1752889864211,-480.0,0.00019726,2]
[373174920,1752889864220,-480.0,0.00019726,2]
[373174921,1752889864230,-384.66015559,0.00019726,2]
[373174922,1752889864239,-480.0,0.00019726,2]
[373174923,1752889864248,-480.0,0.00019726,2]
[373174924,1752889864257,-1840.49,0.00019726,2]
[373174925,1752889864266,-480.0,0.00019726,2]
[373174926,1752889864276,-480.0,0.00019726,2]
[373174927,1752889864286,-673.82,0.00019726,2]
[373174928,1752889864296,-480.0,0.00019726,2]
[373174929,1752889864307,-253.53716232,0.00019726,2]
[373174930,1752889864318,-480.0,0.00019726,2]
[373174931,1752889864327,-498.99,0.00019726,2]
[373174932,1752889864337,-480.0,0.00019726,2]
[373174933,1752889864347,-339.63598513,0.00019726,2]
[373174934,1752889864358,-439.13978548,0.00019726,2]
[373174935,1752889864368,-480.0,0.00019726,2]
[373174936,1752889864378,-480.0,0.00019726,2]
[373174937,1752889864390,-480.0,0.00019726,2]
[373174938,1752889864400,-480.0,0.00019726,2]
[373174939,1752889864409,-923.18,0.00019726,2]
[373174940,1752889864420,-480.0,0.00019726,2]
[373174941,1752889864431,-419.50978705,0.00019726,2]
[373174942,1752889864440,-480.0,0.00019726,2]
[373174943,1752889864449,-480.0,0.00019726,2]
[373174944,1752889864459,-480.0,0.00019726,2]
[373174945,1752889864468,-480.0,0.00019726,2]
[373174946,1752889864477,-480.0,0.00019726,2]
[373174947,1752889864488,-480.0,0.00019726,2]
[373174948,1752889864497,-480.0,0.00019726,2]
[373174949,1752889864507,-480.0,0.00019726,2]
[373174950,1752889864519,-480.0,0.00019726,2]
[373174951,1752889864528,-480.0,0.00019726,2]
[373174952,1752889864538,-480.0,0.00019726,2]
[373174953,1752889864547,-497.21,0.00019726,2]
[373174954,1752889864557,-480.0,0.00019726,2]
[373174955,1752889864566,-480.0,0.00019726,2]
[373174956,1752889864577,-480.0,0.00019726,2]
[373174957,1752889864589,-504.28,0.00019726,2]
[373174958,1752889864599,-480.0,0.00019726,2]
[373174959,1752889864608,-2035.93,0.00019726,2]
[373174960,1752889864618,-490.21,0.00019726,2]
[373174961,1752889864627,-501.52,0.00019726,2]
[373174962,1752889864637,-480.0,0.00019726,2]
[373174963,1752889864646,-548.29,0.00019726,2]
[373174964,1752889864655,-562.57,0.00019726,2]
[373174965,1752889864664,-480.0,0.00019726,2]
[373174966,1752889864674,-480.0,0.00019726,2]
[373174967,1752889864684,-480.0,0.00019726,2]
[373174968,1752889864693,-480.0,0.00019726,2]
[373174969,1752889864703,-818.89,0.00019726,2]
[373174970,1752889864712,-480.0,0.00019726,2]
[373174971,1752889864722,-687.65,0.00019726,2]
[373174972,1752889864732,-480.0,0.00019726,2]
[373174973,1752889864741,-2202.48,0.00019726,2]
[373174974,1752889864750,-480.0,0.00019726,2]
[373174975,1752889864760,-480.0,0.00019726,2]
[373174976,1752889864769,-618.1,0.00019726,2]
[373174977,1752889864778,-480.0,0.00019726,2]
[373174978,1752889864787,-936.33,0.00019726,2]
[373174979,1752889864796,-480.0,0.00019726,2]
[373174980,1752889864805,-480.0,0.00019726,2]
[373174981,1752889864816,-480.0,0.00019726,2]
[373174982,1752889864826,-480.0,0.00019726,2]
[373174983,1752889864835,-480.0,0.00019726,2]
[373174984,1752889864844,-361.16854335,0.00019726,2]
[373174985,1752889864854,-480.0,0.00019726,2]
[373174986,1752889864864,-480.0,0.00019726,2]
[373174987,1752889864873,-480.0,0.00019726,2]
[373174988,1752889864882,-480.0,0.00019726,2]
[373174989,1752889864892,-1561.05,0.00019726,2]
[373174990,1752889864901,-1095.87,0.00019726,2]
[373174991,1752889864911,-480.0,0.00019726,2]
[373174992,1752889864920,-480.0,0.00019726,2]
[373174993,1752889864932,-480.0,0.00019726,2]